bitfinex-derivatives/quotes_BTCF0:USTF0_20250910
["timestamp","ask_amount","ask_price","bid_price","bid_amount"]
[1757490344838,0.16871507,112340.0,112330.0,1.05922514]
[1757490347436,0.04112,112340.0,112330.0,1.05272514]
[1757490347646,0.14635507,112340.0,112330.0,1.05922514]
[1757490347841,0.005,112340.0,112330.0,1.05922514]
[1757490348944,0.14635507,112340.0,112330.0,1.05922514]
[1757490349139,0.005,112340.0,112330.0,1.05922514]
[1757490350545,0.14635507,112340.0,112330.0,1.05922514]
[1757490352144,0.57376014,112340.0,112330.0,0.91121007]
[1757490352547,0.57376014,112340.0,112330.0,1.05256514]
[1757490353149,0.43240507,112340.0,112330.0,1.05256514]
[1757490355043,0.02729,112340.0,112330.0,1.06221514]
[1757490355244,0.16864507,112340.0,112330.0,1.06221514]
[1757490356248,0.02729,112340.0,112330.0,1.06221514]
[1757490356450,0.12147267,112340.0,112330.0,1.01504274]
[1757490358648,0.12147267,112340.0,112330.0,0.20500274]
[1757490358848,0.12147267,112340.0,112330.0,1.00535274]
[1757490358849,0.13523267,112340.0,112330.0,1.00535274]
[1757490359854,0.13523267,112340.0,112330.0,0.19535274]
[1757490360050,0.13523267,112340.0,112330.0,1.00531274]
[1757490361246,0.12147267,112340.0,112330.0,1.01496274]
[1757490363853,0.13523267,112340.0,112330.0,1.01496274]
[1757490364451,0.005,112340.0,112330.0,1.01496274]
[1757490365247,0.005,112340.0,112330.0,0.92078007]
[1757490365455,0.09918267,112340.0,112330.0,1.01496274]
[1757490366156,0.11294267,112340.0,112330.0,1.01496274]
[1757490367054,0.13523267,112340.0,112330.0,1.00527274]
[1757490369155,0.13523267,112340.0,112330.0,1.01492274]
[1757490369156,0.12147267,112340.0,112330.0,1.01492274]
[1757490370058,0.02729,112340.0,112330.0,1.01492274]
[1757490370358,0.12147267,112340.0,112330.0,1.01492274]
[1757490372660,0.13517267,112340.0,112330.0,1.01492274]
[1757490373056,0.12147267,112340.0,112330.0,1.01492274]
[1757490373264,0.005,112340.0,112330.0,1.01492274]
[1757490373463,0.09918267,112340.0,112330.0,1.01492274]
[1757490376465,0.005,112340.0,112330.0,1.01492274]
[1757490376657,0.005,112340.0,112330.0,1.10394334]
[1757490377863,0.005,112340.0,112330.0,1.01492274]
[1757490380064,0.005,112340.0,112330.0,1.01480274]
[1757490381763,0.005,112340.0,112330.0,0.20500274]
[1757490381964,0.005,112340.0,112330.0,1.01480274]
[1757490383363,0.005,112340.0,112330.0,0.20500274]
[1757490383563,0.005,112340.0,112330.0,1.09468507]
[1757490384156,0.005,112340.0,112330.0,1.0004624]
[1757490384362,0.005,112340.0,112330.0,1.09464507]
[1757490384562,0.005,112340.0,112330.0,1.01476274]
[1757490391662,0.005,112340.0,112330.0,1.01472274]
[1757490391860,0.005,112340.0,112330.0,0.20500274]
[1757490392060,0.005,112340.0,112330.0,1.01468274]
[1757490392870,0.02766,112340.0,112330.0,0.11082007]
[1757490393167,0.02766,112340.0,112330.0,1.01468274]
[1757490393467,0.02766,112340.0,112330.0,1.10370334]
[1757490393663,0.02766,112340.0,112330.0,1.01468274]
[1757490395669,0.02766,112340.0,112330.0,0.20500274]
[1757490395871,0.02766,112340.0,112330.0,1.01468274]
[1757490396070,0.005,112340.0,112330.0,1.01468274]
[1757490396368,0.09918267,112340.0,112330.0,1.01468274]
[1757490397170,0.005,112340.0,112330.0,1.01468274]
[1757490397570,0.02766,112340.0,112330.0,0.92050007]
[1757490397770,0.02766,112340.0,112330.0,1.01468274]
[1757490397970,0.02766,112340.0,112330.0,0.92046007]
[1757490398168,0.13554267,112340.0,112330.0,0.91081007]
[1757490398368,0.13554267,112340.0,112330.0,0.10117007]
[1757490398563,0.13554267,112340.0,112330.0,0.82937007]
[1757490399168,0.13554267,112340.0,112330.0,1.00499274]
[1757490401071,0.13554267,112340.0,112330.0,1.01464274]
[1757490403974,0.12184267,112340.0,112330.0,1.01464274]
[1757490404175,0.09918267,112340.0,112330.0,1.01464274]
[1757490406669,0.005,112340.0,112330.0,1.01464274]
[1757490406870,0.09918267,112340.0,112330.0,1.01464274]
[1757490407271,0.12071267,112340.0,112330.0,0.92046007]
[1757490407470,0.12071267,112340.0,112330.0,1.01464274]
[1757490407778,0.12071267,112340.0,112330.0,0.20500274]
[1757490407983,0.13372267,112340.0,112330.0,1.01456274]
[1757490408971,0.13372267,112340.0,112330.0,0.20500274]
[1757490409278,0.22790534,112340.0,112330.0,0.90777007]
[1757490411377,0.13372267,112340.0,112330.0,0.90777007]
[1757490411566,0.13372267,112340.0,112330.0,1.00195274]
[1757490411773,0.02653,112340.0,112330.0,1.01160274]
[1757490411971,0.12071267,112340.0,112330.0,1.01160274]
[1757490412173,0.13372267,112340.0,112330.0,1.00195274]
[1757490413169,0.13372267,112340.0,112330.0,0.90777007]
[1757490413374,0.13372267,112340.0,112330.0,1.00195274]
[1757490414682,0.12071267,112340.0,112330.0,1.01160274]
[1757490415172,0.13372267,112340.0,112330.0,1.00195274]
[1757490416482,0.18081893,112340.0,112330.0,1.049049]
[1757490417574,0.32209786,112340.0,112330.0,1.049049]
[1757490421676,0.30908786,112340.0,112330.0,1.1477196]
[1757490422086,0.16780893,112340.0,112330.0,1.1477196]
[1757490422274,0.16780893,112340.0,112330.0,1.00644067]
[1757490422479,0.16780893,112340.0,112330.0,1.1477196]
[1757490424183,0.14627893,112340.0,112330.0,1.1477196]
[1757490427385,0.01301,112330.0,112320.0,0.02307]
[1757490427684,0.03454,112330.0,112320.0,0.1733619]
[1757490427890,0.02153,112330.0,112320.0,0.60689083]
[1757490428090,0.16280893,112330.0,112320.0,0.4656119]
[1757490428291,0.17581893,112330.0,112320.0,0.9775619]
[1757490428595,0.02153,112330.0,112320.0,1.12245083]
[1757490428791,0.02253,112330.0,112320.0,1.12245083]
[1757490429089,0.16380893,112330.0,112320.0,1.12245083]
[1757490429290,0.16580893,112330.0,112320.0,1.12245083]
[1757490429492,0.16580893,112330.0,112320.0,0.9811719]
[1757490429984,0.16580893,112330.0,112320.0,1.12245083]
[1757490431293,0.16580893,112330.0,112320.0,1.19308478]
[1757490433086,0.02453,112330.0,112320.0,1.19308478]
[1757490433390,0.003,112330.0,112320.0,1.19308478]
[1757490433593,0.003,112330.0,112320.0,1.19836478]
[1757490435180,0.003,112330.0,112320.0,1.28739318]
[1757490435386,0.003,112330.0,112320.0,1.53739318]
[1757490435792,0.003,112330.0,112320.0,1.61727551]
[1757490436190,0.003,112330.0,112320.0,0.80779551]
[1757490436389,0.003,112330.0,112320.0,1.53739318]
[1757490438895,0.003,112330.0,112320.0,0.72791318]
[1757490439101,0.003,112330.0,112320.0,1.53739318]
[1757490439595,0.02542,112330.0,112320.0,1.44836478]
[1757490439792,0.02542,112330.0,112320.0,0.63888478]
[1757490440194,0.02542,112330.0,112320.0,1.44836478]
[1757490440696,0.02542,112330.0,112320.0,0.63888478]
[1757490440897,0.02542,112330.0,112320.0,1.44832478]
[1757490442297,0.02542,112330.0,112320.0,0.63888478]
[1757490442498,0.02542,112330.0,112320.0,0.35632692]
[1757490442696,0.02542,112330.0,112320.0,1.44832478]
[1757490443597,0.02542,112330.0,112320.0,0.63888478]
[1757490443800,0.02542,112330.0,112320.0,1.44832478]
[1757490444004,0.16669893,112330.0,112320.0,1.44832478]
[1757490444700,0.16669893,112330.0,112320.0,1.05704585]
[1757490444893,0.18013893,112330.0,112320.0,1.05704585]
[1757490445202,0.18013893,112330.0,112320.0,1.19471478]
[1757490445502,0.02542,112330.0,112320.0,1.19832478]
[1757490445696,0.18013893,112330.0,112320.0,0.10271692]
[1757490445895,0.18013893,112330.0,112320.0,1.19471478]
[1757490446501,0.18013893,112330.0,112320.0,0.38527478]
[1757490446698,0.18013893,112330.0,112320.0,1.19467478]
[1757490447302,0.18013893,112330.0,112320.0,0.38527478]
[1757490447503,0.18013893,112330.0,112320.0,1.05339585]
[1757490448007,0.18013893,112330.0,112320.0,0.24399585]
[1757490448302,0.18013893,112330.0,112320.0,1.05339585]
[1757490448703,0.18013893,112330.0,112320.0,0.24399585]
[1757490448904,0.18013893,112330.0,112320.0,1.05339585]
[1757490450206,0.03886,112330.0,112320.0,1.05339585]
[1757490450399,0.18013893,112330.0,112320.0,1.05339585]
[1757490450604,0.03886,112330.0,112320.0,1.05339585]
[1757490450806,0.18013893,112330.0,112320.0,1.05339585]
[1757490453705,0.18013893,112330.0,112320.0,0.91211692]
[1757490454011,0.18013893,112330.0,112320.0,1.05339585]
[1757490454404,0.18013893,112330.0,112320.0,0.91211692]
[1757490454607,0.18013893,112330.0,112320.0,1.05339585]
[1757490454809,0.18013893,112330.0,112320.0,0.91207692]
[1757490455209,0.18013893,112330.0,112320.0,1.05335585]
[1757490455512,0.03886,112330.0,112320.0,0.10271692]
[1757490455712,0.18013893,112330.0,112320.0,0.86139692]
[1757490455911,0.32141786,112330.0,112320.0,0.03208297]
[1757490456111,0.57141786,112330.0,112320.0,0.84144297]
[1757490457309,0.57141786,112330.0,112320.0,0.03208297]
[1757490457509,0.57141786,112330.0,112310.0,0.07222132]
[1757490457816,0.31841786,112320.0,112310.0,0.83208]
[1757490458604,0.03586,112320.0,112310.0,0.8412287]
[1757490458808,0.31841786,112320.0,112310.0,0.8422287]
[1757490459716,0.31941786,112320.0,112310.0,0.8422287]
[1757490460016,0.31941786,112320.0,112310.0,0.0329087]
[1757490460208,0.31941786,112320.0,112310.0,0.8422287]
[1757490461006,0.31941786,112320.0,112310.0,0.91484185]
[1757490461217,0.31941786,112320.0,112310.0,0.10552185]
[1757490461613,0.31941786,112320.0,112310.0,0.91484185]
[1757490463018,0.03686,112320.0,112310.0,0.91484185]
[1757490463420,0.31941786,112320.0,112310.0,0.91484185]
[1757490463613,0.31941786,112320.0,112310.0,0.0329087]
[1757490463813,0.31941786,112320.0,112310.0,0.8422287]
[1757490465426,0.03686,112320.0,112310.0,0.8422287]
[1757490465721,0.31941786,112320.0,112310.0,0.8422287]
[1757490465922,0.31941786,112320.0,112310.0,0.0329087]
[1757490466420,0.31941786,112320.0,112310.0,0.8422287]
[1757490467827,0.31941786,112320.0,112310.0,0.8413587]
[1757490468023,0.56941786,112320.0,112310.0,0.8413587]
[1757490470639,0.71069679,112320.0,112310.0,0.8413587]
[1757490471034,0.71069679,112320.0,112310.0,0.02289]
[1757490471233,0.71069679,112320.0,112310.0,0.81032]
[1757490471434,0.71069679,112320.0,112310.0,0.001]
[1757490472337,0.73293131,112320.0,112310.0,0.001]
[1757490478349,0.59192294,112320.0,112310.0,0.001]
[1757490478847,1.40132294,112320.0,112310.0,0.001]
[1757490481339,0.59192294,112320.0,112310.0,0.001]
[1757490481544,1.40132294,112320.0,112310.0,0.001]
[1757490482644,1.40136294,112320.0,112310.0,0.001]
[1757490490054,0.59192294,112320.0,112310.0,0.001]
[1757490490250,0.2476468,112320.0,112310.0,0.001]
[1757490490446,0.2476468,112320.0,112310.0,0.02289]
[1757490490647,0.9388068,112320.0,112310.0,0.02289]
[1757490491257,0.9388068,112320.0,112310.0,0.001]
[1757490493048,0.9388068,112320.0,112310.0,0.02347]
[1757490493757,0.93880044,112320.0,112310.0,0.02347]
[1757490495351,0.05908816,112320.0,112310.0,0.02347]
[1757490495656,0.05908816,112320.0,112310.0,0.27347]
[1757490495851,0.24764044,112320.0,112310.0,0.27347]
[1757490497956,0.34191658,112320.0,112310.0,0.001]
[1757490499456,0.34191658,112320.0,112310.0,0.02347]
[1757490499657,0.34191658,112320.0,112310.0,0.001]
[1757490501459,0.24764044,112320.0,112310.0,0.02347]
[1757490504164,0.34191658,112320.0,112310.0,0.001]
[1757490507363,1.15127658,112320.0,112310.0,0.02347]
[1757490508063,1.15127658,112320.0,112310.0,0.001]
[1757490515967,0.05908816,112320.0,112310.0,0.02347]
[1757490516168,1.05696044,112320.0,112310.0,0.02347]
[1757490517073,1.05696044,112320.0,112310.0,0.001]
[1757490518360,0.24764044,112320.0,112310.0,0.001]
[1757490518763,1.05692044,112320.0,112310.0,0.001]
[1757490525771,0.24764044,112320.0,112310.0,0.001]
[1757490526074,0.05908816,112320.0,112310.0,0.0227]
[1757490526273,1.03756044,112320.0,112310.0,0.0227]
[1757490527969,1.05688044,112320.0,112310.0,0.0227]
[1757490534477,0.24764044,112320.0,112310.0,0.2727]
[1757490534679,0.05908816,112320.0,112310.0,0.2727]
[1757490534878,0.24764044,112320.0,112310.0,0.2727]
[1757490535476,0.22541228,112320.0,112310.0,0.2727]
[1757490540383,0.31955216,112320.0,112310.0,0.2727]
[1757490541484,0.31955216,112320.0,112310.0,0.41404608]
[1757490541682,0.17820608,112320.0,112310.0,0.43491877]
[1757490541887,0.001,112320.0,112310.0,0.44298877]
[1757490543185,0.001,112320.0,112310.0,0.44198877]
[1757490543392,0.001,112320.0,112310.0,0.44298877]
[1757490543683,0.16516608,112320.0,112310.0,0.44298877]
[1757490543882,0.14234608,112320.0,112310.0,0.44298877]
[1757490548580,0.16516608,112320.0,112310.0,0.44298877]
[1757490551183,0.02382,112320.0,112310.0,0.53202157]
[1757490551387,0.02218,112350.0,112340.0,0.03259]
[1757490551587,0.02218,112350.0,112340.0,0.17393608]
[1757490551779,0.16352608,112350.0,112340.0,0.26294508]
[1757490551981,0.16352608,112350.0,112340.0,0.40429116]
[1757490552187,0.16352608,112350.0,112340.0,0.26294508]
[1757490553182,0.02518,112350.0,112340.0,0.26294508]
[1757490553485,0.16652608,112350.0,112340.0,0.26294508]
[1757490553679,0.16652608,112350.0,112340.0,0.40429116]
[1757490553881,0.16952608,112350.0,112340.0,0.40429116]
[1757490554081,0.16952608,112350.0,112340.0,0.47612296]
[1757490554484,0.02818,112350.0,112340.0,0.47612296]
[1757490554786,0.16952608,112350.0,112340.0,0.47612296]
[1757490554980,0.02818,112350.0,112340.0,0.47612296]
[1757490555184,0.006,112350.0,112340.0,0.47612296]
[1757490555581,0.14734608,112350.0,112340.0,0.47612296]
[1757490557091,0.006,112350.0,112340.0,0.47612296]
[1757490557489,0.02818,112350.0,112340.0,0.4852652]
[1757490558488,0.14734608,112350.0,112340.0,0.4852652]
[1757490558789,0.006,112350.0,112340.0,0.4852652]
[1757490558985,0.006,112350.0,112340.0,0.87661128]
[1757490559388,0.006,112350.0,112340.0,1.68541128]
[1757490560289,0.08634058,112390.0,112340.0,1.68541128]
[1757490560290,0.01353,112400.0,112370.0,0.00441]
[1757490560488,0.17705608,112400.0,112390.0,0.02294]
[1757490560789,0.31840216,112400.0,112380.0,0.07214786]
[1757490560982,0.17705608,112390.0,112380.0,0.16428608]
[1757490561179,0.17705608,112390.0,112380.0,0.02294]
[1757490561386,0.17705608,112390.0,112380.0,0.16428608]
[1757490563585,0.18305608,112390.0,112380.0,0.16428608]
[1757490564699,0.18305608,112390.0,112380.0,0.30563216]
[1757490564996,0.04171,112390.0,112380.0,0.30563216]
[1757490565398,0.18305608,112390.0,112380.0,0.30563216]
[1757490566198,0.18305608,112390.0,112380.0,0.37617152]
[1757490566895,0.02818,112390.0,112380.0,0.38582152]
[1757490567100,0.16952608,112390.0,112380.0,0.38582152]
[1757490567495,0.02818,112390.0,112380.0,0.38582152]
[1757490567702,0.006,112390.0,112380.0,0.38582152]
[1757490567998,0.02818,112390.0,112380.0,0.38582152]
[1757490568800,0.16952608,112390.0,112380.0,0.38582152]
[1757490569404,0.006,112390.0,112380.0,0.38582152]
[1757490569997,0.006,112390.0,112380.0,0.47479882]
[1757490571205,0.006,112390.0,112380.0,0.38582152]
[1757490572805,0.02818,112390.0,112380.0,0.38582152]
[1757490573104,0.006,112390.0,112380.0,0.38582152]
[1757490573407,0.02818,112390.0,112380.0,0.10312936]
[1757490573607,0.02818,112390.0,112380.0,0.38582152]
[1757490573810,0.02818,112390.0,112380.0,1.19426152]
[1757490574400,0.02818,112390.0,112380.0,0.38582152]
[1757490574401,0.16952608,112390.0,112380.0,0.38582152]
[1757490574700,0.16952608,112390.0,112380.0,1.07370152]
[1757490575003,0.18305608,112390.0,112380.0,0.09347936]
[1757490575208,0.18305608,112390.0,112380.0,1.18461152]
[1757490579308,0.16952608,112390.0,112380.0,1.18461152]
[1757490579506,0.006,112390.0,112380.0,1.18461152]
[1757490579706,0.14734608,112390.0,112380.0,1.18461152]
[1757490581710,0.02823605,112390.0,112380.0,1.18461152]
[1757490584714,0.04169605,112390.0,112380.0,1.18461152]
[1757490584916,0.18304213,112390.0,112380.0,1.18461152]
[1757490586010,0.04169605,112390.0,112380.0,1.18461152]
[1757490586211,0.01946,112390.0,112380.0,1.18461152]
[1757490587119,0.16080608,112390.0,112380.0,1.18461152]
[1757490588317,0.1831041,112390.0,112380.0,1.18461152]
[1757490588718,0.2051941,112390.0,112380.0,0.90191936]
[1757490589020,0.2051941,112390.0,112380.0,1.18461152]
[1757490591219,0.2051941,112390.0,112380.0,0.90235936]
[1757490591420,0.2051941,112390.0,112380.0,1.18505152]
[1757490592015,0.2021941,112390.0,112380.0,1.18505152]
[1757490592216,0.06284802,112390.0,112380.0,1.18505152]
[1757490592410,0.2011941,112390.0,112380.0,1.18505152]
[1757490592618,0.06084802,112390.0,112380.0,1.18505152]
[1757490593019,0.2021941,112390.0,112380.0,1.18505152]
[1757490595815,0.06084802,112390.0,112380.0,1.18505152]
[1757490596017,0.04738802,112390.0,112380.0,0.90235936]
[1757490596320,0.02529802,112390.0,112380.0,1.18505152]
[1757490596722,0.1666441,112390.0,112380.0,1.18505152]
[1757490598722,0.02529802,112390.0,112380.0,1.18505152]
[1757490599426,0.02529802,112390.0,112380.0,1.27402882]
[1757490600320,0.04738802,112390.0,112380.0,0.3706157]
[1757490600521,0.04742288,112390.0,112380.0,1.1793357]
[1757490600830,0.02533288,112390.0,112380.0,1.1793357]
[1757490601220,0.003,112390.0,112380.0,1.1793357]
[1757490603229,0.003,112390.0,112380.0,1.0903584]
[1757490603426,0.003,112390.0,112380.0,0.99627888]
[1757490603621,0.003,112390.0,112380.0,1.08525618]
[1757490603829,0.003,112390.0,112380.0,1.1793357]
[1757490604025,0.003,112390.0,112380.0,1.08525618]
[1757490604228,0.003,112390.0,112380.0,1.1793357]
[1757490605329,0.0001,112410.0,112400.0,0.1231115]
[1757490605631,0.01346,112430.0,112400.0,0.1231115]
[1757490605632,0.0001,112430.0,112420.0,0.1214257]
[1757490605830,0.10753952,112440.0,112420.0,1.11802474]
[1757490606133,0.05786992,112440.0,112430.0,0.11690952]
[1757490607030,0.10753952,112450.0,112430.0,0.11690952]
[1757490607232,0.05782016,112450.0,112440.0,0.92526952]
[1757490607432,0.03555,112450.0,112440.0,0.92526952]
[1757490607619,0.02209,112450.0,112440.0,0.95688575]
[1757490608019,0.03555,112450.0,112440.0,0.94556575]
[1757490608234,0.12962952,112450.0,112440.0,0.85148623]
[1757490608931,0.13362952,112450.0,112440.0,0.85148623]
[1757490609234,0.004,112450.0,112440.0,0.95688575]
[1757490609432,0.004,112450.0,112440.0,1.05096527]
[1757490609633,0.007,112450.0,112440.0,1.05096527]
[1757490610242,0.01356,112470.0,112460.0,0.121394]
[1757490610243,0.0001,112470.0,112460.0,0.121394]
[1757490610532,0.01346,112490.0,112460.0,1.14952717]
[1757490610533,0.09407952,112480.0,112460.0,1.14952717]
[1757490610724,0.01346,112490.0,112470.0,0.11690952]
[1757490610725,0.10753952,112490.0,112470.0,0.11690952]
[1757490610930,0.12962952,112500.0,112490.0,0.02283]
[1757490612232,0.12962952,112500.0,112490.0,0.09495008]
[1757490612628,0.13262952,112500.0,112490.0,0.09495008]
[1757490612823,0.13562952,112500.0,112490.0,0.09495008]
[1757490613029,0.04155,112500.0,112490.0,0.09495008]
[1757490613331,0.12238952,112500.0,112490.0,0.1890296]
[1757490613532,0.12238952,112500.0,112490.0,0.09495008]
[1757490613730,0.003,112500.0,112490.0,0.1890296]
[1757490614333,0.10753952,112510.0,112490.0,0.1910296]
[1757490614730,0.01346,112520.0,112500.0,0.93524952]
[1757490614934,0.10753952,112520.0,112500.0,0.93524952]
[1757490615240,0.12974952,112510.0,112500.0,0.02196]
[1757490615430,0.11638952,112510.0,112500.0,0.84113]
[1757490615625,0.09507952,112510.0,112500.0,0.93520952]
[1757490616232,0.09407952,112510.0,112500.0,0.84113]
[1757490616427,0.22482904,112510.0,112500.0,0.02196]
[1757490616737,0.47482904,112510.0,112500.0,0.02196]
[1757490616938,0.38074952,112510.0,112500.0,0.02196]
[1757490618038,0.03667,112510.0,112500.0,0.02196]
[1757490618336,0.13074952,112510.0,112500.0,0.11603952]
[1757490618538,0.13274952,112510.0,112500.0,0.02196]
[1757490621137,0.47682904,112510.0,112500.0,0.02196]
[1757490621533,0.38274952,112510.0,112500.0,0.02196]
[1757490621733,0.47682904,112510.0,112500.0,0.02196]
[1757490622340,0.13274952,112510.0,112500.0,0.02196]
[1757490624630,0.03867,112510.0,112500.0,0.02196]
[1757490624836,0.13274952,112510.0,112500.0,0.02196]
[1757490626336,0.03567,112500.0,112490.0,0.02206]
[1757490626533,0.12974952,112500.0,112490.0,0.02196]
[1757490627636,0.22382904,112500.0,112490.0,0.02196]
[1757490627838,0.12974952,112500.0,112490.0,0.02196]
[1757490628539,0.13074952,112500.0,112490.0,0.02196]
[1757490629344,0.13074952,112500.0,112490.0,0.11603952]
[1757490629842,0.22482904,112500.0,112490.0,0.02196]
[1757490630043,0.13074952,112500.0,112490.0,0.02196]
[1757490630540,0.03567,112490.0,112480.0,0.00013357]
[1757490630738,0.47382904,112490.0,112480.0,0.00013357]
[1757490632237,0.49573681,112490.0,112480.0,0.00113357]
[1757490632839,0.57397927,112490.0,112480.0,0.00113357]
[1757490633144,0.03567,112450.0,112440.0,0.04225623]
[1757490633344,0.12974952,112450.0,112440.0,0.04225623]
[1757490633946,0.03567,112450.0,112440.0,0.04225623]
[1757490634150,0.12974952,112450.0,112440.0,0.04225623]
[1757490634548,0.22382904,112450.0,112440.0,0.02029623]
[1757490634843,0.22382904,112450.0,112430.0,0.0001]
[1757490634844,0.03567,112440.0,112430.0,0.02206]
[1757490635041,0.02967,112440.0,112430.0,0.02196]
[1757490635242,0.12374952,112440.0,112430.0,0.02196]
[1757490635945,0.12074952,112440.0,112430.0,0.02196]
[1757490636142,0.21582904,112440.0,112430.0,0.02896]
[1757490636344,0.15901536,112440.0,112430.0,0.02896]
[1757490636649,0.15901536,112440.0,112430.0,0.03296]
[1757490644155,0.15901536,112440.0,112430.0,0.011]
[1757490644559,0.40901536,112440.0,112430.0,0.011]
[1757490644959,0.40901536,112440.0,112430.0,0.03315]
[1757490645354,0.40901536,112440.0,112430.0,0.011]
[1757490645856,0.54036072,112440.0,112430.0,0.011]
[1757490646057,0.03465,112430.0,112420.0,0.0001]
[1757490646249,0.03465,112420.0,112410.0,0.02039964]
[1757490646454,0.16599536,112420.0,112410.0,0.05122742]
[1757490646858,0.03465,112420.0,112410.0,0.29244964]
[1757490647461,0.16599536,112420.0,112410.0,0.29244964]
[1757490647663,0.03465,112420.0,112410.0,0.29244964]
[1757490647859,0.03465,112420.0,112410.0,0.02215]
[1757490647860,0.16599536,112420.0,112410.0,0.02215]
[1757490648165,0.15899536,112420.0,112410.0,0.02215]
[1757490648364,0.02765,112420.0,112410.0,0.03524]
[1757490648760,0.02865,112420.0,112410.0,0.04424]
[1757490649364,0.16099536,112420.0,112410.0,0.04024]
[1757490649567,0.16099536,112420.0,112410.0,0.03624]
[1757490649568,0.16199536,112420.0,112410.0,0.03624]
[1757490650264,0.03065,112420.0,112410.0,0.03624]
[1757490650860,0.03065,112420.0,112410.0,0.02315]
[1757490651465,0.16199536,112420.0,112410.0,0.02315]
[1757490653059,0.003,112420.0,112410.0,0.05734406]
[1757490653268,0.003,112420.0,112410.0,0.30734406]
[1757490653872,0.003,112420.0,112410.0,0.39629906]
[1757490655877,0.003,112420.0,112410.0,0.30734406]
[1757490656270,0.003,112420.0,112410.0,0.39629906]
[1757490658276,0.11865851,112420.0,112410.0,0.39629906]
[1757490658464,0.09703851,112420.0,112410.0,0.39629906]
[1757490658869,0.11865851,112420.0,112410.0,0.30734406]
[1757490660882,0.13168851,112420.0,112410.0,0.30734406]
[1757490662278,0.1787332,112420.0,112410.0,0.30734406]
[1757490662575,0.3198164,112420.0,112410.0,0.30734406]
[1757490664680,0.3067864,112420.0,112410.0,0.30734406]
[1757490665073,0.3198164,112420.0,112410.0,0.30734406]
[1757490665269,0.3198164,112420.0,112410.0,0.04425406]
[1757490668087,0.34183089,112420.0,112410.0,0.04425406]
[1757490669378,0.3198164,112420.0,112410.0,0.04425406]
[1757490669584,0.34183242,112420.0,112410.0,0.04425406]
[1757490671678,0.34183475,112420.0,112410.0,0.04425406]
[1757490672081,0.3198164,112420.0,112410.0,0.04425406]
[1757490672284,0.34183565,112420.0,112410.0,0.04425406]
[1757490672588,0.34183565,112420.0,112410.0,0.05708406]
[1757490672886,0.003,112420.0,112410.0,1.34716226]
[1757490673581,0.003,112420.0,112410.0,1.48824546]
[1757490673782,0.1411832,112430.0,112420.0,0.4013535]
[1757490673984,0.1411832,112440.0,112430.0,0.1238991]
[1757490674286,0.16310016,112440.0,112430.0,0.14487626]
[1757490674588,0.16310016,112440.0,112430.0,0.28595946]
[1757490674776,0.02201696,112440.0,112430.0,1.09611946]
[1757490674982,0.1411832,112450.0,112440.0,0.01283]
[1757490675288,0.1410832,112450.0,112440.0,0.1764232]
[1757490675489,0.1537932,112460.0,112450.0,0.01283]
[1757490675685,0.33892645,112460.0,112450.0,0.03534]
[1757490675878,0.33892645,112460.0,112450.0,0.1764232]
[1757490676085,0.04415005,112460.0,112450.0,0.1764232]
[1757490676392,0.32631645,112460.0,112450.0,0.1764232]
[1757490676592,0.04415005,112460.0,112450.0,0.33615488]
[1757490676885,0.1635532,112470.0,112460.0,0.1194154]
[1757490677087,0.1635532,112480.0,112470.0,0.03496]
[1757490677283,0.1634532,112480.0,112470.0,0.1760432]
[1757490677887,0.1410832,112480.0,112470.0,0.1760432]
[1757490678693,0.1634532,112480.0,112470.0,0.1760432]
[1757490679287,0.1694532,112480.0,112470.0,0.1770432]
[1757490679683,0.1724532,112480.0,112470.0,0.1770432]
[1757490680185,0.1724532,112480.0,112470.0,0.18597389]
[1757490682696,0.1500832,112480.0,112470.0,0.99585389]
[1757490683396,0.1500832,112480.0,112470.0,0.99581389]
[1757490683693,0.1724532,112480.0,112470.0,0.18597389]
[1757490684089,0.3261464,112480.0,112470.0,0.03244069]
[1757490686495,0.3261464,112480.0,112470.0,0.04489069]
[1757490686701,0.3261464,112480.0,112470.0,0.18597389]
[1757490686993,0.3261464,112480.0,112470.0,0.03244069]
[1757490689194,0.3261464,112480.0,112470.0,0.17352389]
[1757490691891,0.7172296,112480.0,112470.0,0.001]
[1757490692291,0.3261464,112480.0,112470.0,0.02351]
[1757490692486,0.5761464,112480.0,112470.0,0.02351]
[1757490692896,0.1724532,112480.0,112470.0,0.1770432]
[1757490693087,0.03137,112480.0,112470.0,0.1770432]
[1757490693285,0.1724532,112480.0,112470.0,0.1770432]
[1757490694088,0.03137,112480.0,112470.0,0.1770432]
[1757490694396,0.1724532,112480.0,112470.0,0.1770432]
[1757490696196,0.3135364,112480.0,112470.0,0.1770432]
[1757490697091,0.1724532,112480.0,112470.0,0.1770432]
[1757490697286,0.3135364,112480.0,112470.0,0.1770432]
[1757490697686,0.1724532,112480.0,112470.0,0.1770432]
[1757490698691,0.3135364,112480.0,112470.0,0.03596]
[1757490699090,0.3261464,112480.0,112470.0,0.03596]
[1757490699593,0.3261464,112480.0,112470.0,0.02351]
[1757490705306,0.34782358,112480.0,112470.0,0.02351]
[1757490711207,0.20674038,112480.0,112470.0,0.1645932]
[1757490711515,0.1500832,112480.0,112470.0,0.19813147]
[1757490711708,0.1720632,112480.0,112470.0,0.19813147]
[1757490716611,0.009,112480.0,112470.0,1.34535897]
[1757490717710,0.009,112480.0,112470.0,1.25645147]
[1757490717909,0.1500832,112480.0,112470.0,1.25645147]
[1757490718119,0.009,112480.0,112470.0,1.25645147]
[1757490719212,0.1500832,112480.0,112470.0,1.25645147]
[1757490719518,0.1720632,112480.0,112470.0,1.25645147]
[1757490720915,0.009,112480.0,112470.0,1.25645147]
[1757490721118,0.1500832,112480.0,112470.0,1.34535897]
[1757490721322,0.009,112480.0,112470.0,1.34535897]
[1757490722822,0.009,112480.0,112470.0,1.48644217]
[1757490724316,0.009,112480.0,112470.0,1.2981888]
[1757490727221,0.03098,112480.0,112470.0,0.05704827]
[1757490727422,0.03098,112480.0,112470.0,0.6497213]
[1757490727627,0.009,112480.0,112470.0,0.9886288]
[1757490728218,0.009,112480.0,112470.0,1.08254183]
[1757490728624,0.009,112480.0,112470.0,0.9886288]
[1757490731115,0.009,112480.0,112470.0,0.4009613]
[1757490731321,0.009,112480.0,112470.0,1.11524827]
[1757490731521,0.03025,112480.0,112470.0,0.9591613]
[1757490732026,0.04402,112480.0,112470.0,0.9591613]
[1757490732225,0.04402,112480.0,112470.0,1.03904363]
[1757490732429,0.03025,112480.0,112470.0,1.03904363]
[1757490733429,0.03025,112480.0,112470.0,0.9591613]
[1757490734229,0.03025,112480.0,112470.0,0.1509613]